[Event "15th Governor Cup 2019"]
[Site "Khanty-Mansiysk"]
[Date "2019.11.24"]
[Round "8.19"]
[White "Skvortsov, Andrey"]
[Black "Mukhina, Jana"]
[Result "1-0"]
[ECO "B34"]
[WhiteElo "2137"]
[BlackElo "2105"]
[Annotator "NA"]
[PlyCount "75"]
[EventDate "2019.11.19"]
[EventType "swiss"]
[EventCountry "RUS"]
[SourceTitle "playchess.com"]
[Source "ChessBase"]
[SourceQuality "1"]
[TimeControl "5400+30"]

1. Nc3 {[%emt 0:00:00]} c5 {[%emt 0:01:23]} 2. e4 {[%emt 0:00:00]} Nc6 {[%emt 0:00:07]} 3. Nge2 {[%emt 0:00:00]} g6 {[%emt 0:02:59]} 4. d4 {[%emt 0:00:15]} cxd4 {[%emt 0:00:09]} 5. Nxd4 {[%emt 0:00:04]} Bg7 {[%emt 0:00:05]} 6. Nde2 {[%emt 0:00:11]} Nf6 {[%emt 0:00:33]} 7. a4 {[%emt 0:00:04]} O-O {[%emt 0:02:20]} 8. g3 {[%emt 0:00:03]} d6 {[%emt 0:03:24]} 9. Bg2 {[%emt 0:00:04]} Bg4 {[%emt 0:00:13]} 10. h3 {[%emt 0:00:07]} Be6 {[%emt 0:00:08]} 11. O-O {[%emt 0:00:51]} Qc8 {[%emt 0:04:48]} 12. Nf4 {[%emt 0:00:00]} Bc4 {[%emt 0:02:04]} 13. Re1 {[%emt 0:00:00]} Rd8 {[%emt 0:00:11]} 14. Ncd5 {[%emt 0:10:31]} e6 {[%emt 0:04:06]} 15. Ne3 {[%emt 0:00:56]} Ba6 {[%emt 0:00:09]} 16. Rb1 {[%emt 0:00:09]} b6 {[%emt 0:01:16]} 17. b3 {[%emt 0:01:39]} Qc7 {[%emt 0:06:50]} 18. Bb2 {[%emt 0:00:16]} Ne5 {[%emt 0:01:06]} 19. c4 {[%emt 0:02:12]} Bb7 {[%emt 0:00:20]} 20. Qc2 {[%emt 0:01:07]} Rac8 {[%emt 0:00:25]} 21. Ne2 {[%emt 0:02:29]} Qb8 {[%emt 0:01:36]} 22. Rbd1 {[%emt 0:01:41]} Qa8 {[%emt 0:04:10]} 23. Nc3 {[%emt 0:00:04]} a6 {[%emt 0:10:58]} 24. f4 {[%emt 0:01:01]} Nc6 {[%emt 0:00:11]} 25. Ba3 {[%emt 0:00:07]} Ne8 {[%emt 0:00:14]} 26. Qd3 {[%emt 0:05:46]} Nb8 {[%emt 0:03:31]} 27. e5 {[%emt 0:03:00]} Nd7 {[%emt 0:02:38]} 28. Bxb7 {[%emt 0:01:34]} Qxb7 {[%emt 0:00:02]} 29. exd6 {[%emt 0:01:44]} Nxd6 {[%emt 0:17:52]} 30. Bxd6 {[%emt 0:00:24]} Nc5 {[%emt 0:00:01]} 31. Qc2 {[%emt 0:00:58]} Qf3 {[%emt 0:02:58]} 32. Bxc5 {[%emt 0:02:06]} Rxd1 {[%emt 0:01:08]} 33. Rxd1 {[%emt 0:14:06]} bxc5 {[%emt 0:01:24]} 34. Rd3 {[%emt 0:00:25]} Bd4 {[%emt 0:02:12]} 35. Kh2 {[%emt 0:01:05]} Rb8 {[%emt 0:07:50]} 36. Nf5 {[%emt 0:02:49]} Qf2+ {[%emt 0:00:09]} 37. Qxf2 {[%emt 0:00:12]} Bxf2 {[%emt 0:00:01]} 38. Nd1 {[%emt 0:00:32]} 1-0

[Event "15th Governor Cup 2019"]
[Site "Khanty-Mansiysk"]
[Date "2019.11.24"]
[Round "8.20"]
[White "Kochukova, Anna"]
[Black "Shafigullina, Zarina"]
[Result "0-1"]
[ECO "B32"]
[WhiteElo "2117"]
[BlackElo "2295"]
[Annotator "NA"]
[PlyCount "110"]
[EventDate "2019.11.19"]
[EventType "swiss"]
[EventCountry "RUS"]
[SourceTitle "playchess.com"]
[Source "ChessBase"]
[SourceQuality "1"]
[TimeControl "5400+30"]

1. e4 {[%emt 0:00:00]} c5 {[%emt 0:00:00]} 2. Nf3 {[%emt 0:00:00]} Nc6 {[%emt 0:00:00]} 3. d4 {[%emt 0:00:00]} cxd4 {[%emt 0:00:02]} 4. Nxd4 {[%emt 0:00:00]} e5 {[%emt 0:00:06]} 5. Nb5 {[%emt 0:00:33]} d6 {[%emt 0:00:08]} 6. N1c3 {[%emt 0:02:17]} a6 {[%emt 0:00:10]} 7. Na3 {[%emt 0:00:06]} Be7 {[%emt 0:00:07]} 8. Nc4 {[%emt 0:03:29]} b5 {[%emt 0:02:31]} 9. Ne3 {[%emt 0:00:40]} Nf6 {[%emt 0:00:54]} 10. Ned5 {[%emt 0:03:20]} O-O {[%emt 0:03:42]} 11. Nxf6+ {[%emt 0:05:59]} Bxf6 {[%emt 0:00:11]} 12. Be2 {[%emt 0:00:24]} Be6 {[%emt 0:01:09]} 13. O-O {[%emt 0:00:37]} b4 {[%emt 0:06:02]} 14. Nd5 {[%emt 0:00:25]} Bxd5 {[%emt 0:01:11]} 15. exd5 {[%emt 0:07:32]} Ne7 {[%emt 0:03:16]} 16. a3 {[%emt 0:09:20]} a5 {[%emt 0:00:44]} 17. axb4 {[%emt 0:05:44]} axb4 {[%emt 0:00:05]} 18. Rxa8 {[%emt 0:00:23]} Qxa8 {[%emt 0:00:06]} 19. Bc4 {[%emt 0:00:15]} Rc8 {[%emt 0:01:36]} 20. Qd3 {[%emt 0:00:30]} g6 {[%emt 0:04:04]} 21. Bd2 {[%emt 0:03:24]} Qa5 {[%emt 0:00:25]} 22. Qe4 {[%emt 0:10:05]} Nf5 {[%emt 0:14:05]} 23. c3 {[%emt 0:09:12]} bxc3 {[%emt 0:05:37]} 24. Bxc3 {[%emt 0:03:15]} Qc5 {[%emt 0:00:12]} 25. b3 {[%emt 0:00:11]} Bd8 {[%emt 0:03:23]} 26. Ra1 {[%emt 0:05:41]} Bb6 {[%emt 0:00:35]} 27. Qe1 {[%emt 0:00:18]} Nd4 {[%emt 0:03:33]} 28. Bxd4 {[%emt 0:06:15]} Qxd4 {[%emt 0:00:05]} 29. Ra2 {[%emt 0:00:13]} f5 {[%emt 0:03:16]} 30. Qd2 {[%emt 0:00:57]} Qxd2 {[%emt 0:03:47]} 31. Rxd2 {[%emt 0:00:01]} Ra8 {[%emt 0:00:04]} 32. g3 {[%emt 0:00:59]} Ra1+ {[%emt 0:01:15]} 33. Kg2 {[%emt 0:00:03]} e4 {[%emt 0:03:20]} 34. Bb5 {[%emt 0:06:47]} Rb1 {[%emt 0:01:10]} 35. Bc4 {[%emt 0:00:19]} Kg7 {[%emt 0:03:21]} 36. Ra2 {[%emt 0:04:14]} Bc5 {[%emt 0:00:51]} 37. Re2 {[%emt 0:00:36]} Kf6 {[%emt 0:02:58]} 38. Kh3 {[%emt 0:03:21]} Rg1 {[%emt 0:03:36]} 39. Kh4 {[%emt 0:07:43]} Rg2 {[%emt 0:01:32]} 40. Kh3 {[%emt 0:00:10]} Rxf2 {[%emt 0:00:51]} 41. Rxf2 {[%emt 0:00:12]} Bxf2 {[%emt 0:00:05]} 42. Kg2 {[%emt 0:00:59]} Bc5 {[%emt 0:00:19]} 43. h4 {[%emt 0:03:34]} h6 {[%emt 0:00:12]} 44. Kh3 {[%emt 0:00:35]} g5 {[%emt 0:02:15]} 45. hxg5+ {[%emt 0:00:17]} hxg5 {[%emt 0:00:16]} 46. Bb5 {[%emt 0:00:41]} Ke5 {[%emt 0:00:30]} 47. Bc4 {[%emt 0:00:30]} Kd4 {[%emt 0:00:41]} 48. Kg2 {[%emt 0:00:26]} Ke3 {[%emt 0:01:01]} 49. Bb5 {[%emt 0:00:38]} Kd2 {[%emt 0:02:56]} 50. Kf1 {[%emt 0:01:09]} f4 {[%emt 0:00:36]} 51. gxf4 {[%emt 0:00:27]} gxf4 {[%emt 0:00:05]} 52. Kg2 {[%emt 0:00:08]} Ke1 {[%emt 0:01:41]} 53. Bc4 {[%emt 0:00:52]} f3+ {[%emt 0:01:50]} 54. Kg3 {[%emt 0:00:24]} f2 {[%emt 0:00:07]} 55. Kf4 {[%emt 0:00:35]} e3 {[%emt 0:00:45]} 0-1

[Event "15th Governor Cup 2019"]
[Site "Khanty-Mansiysk"]
[Date "2019.11.24"]
[Round "8.21"]
[White "Mironenko, Galina"]
[Black "Voskresenskaya, Marta"]
[Result "0-1"]
[ECO "D48"]
[WhiteElo "2236"]
[BlackElo "1859"]
[Annotator "NA"]
[PlyCount "84"]
[EventDate "2019.11.19"]
[EventType "swiss"]
[EventCountry "RUS"]
[SourceTitle "playchess.com"]
[Source "ChessBase"]
[SourceQuality "1"]
[TimeControl "5400+30"]

1. d4 {[%emt 0:00:00]} d5 {[%emt 0:00:00]} 2. c4 {[%emt 0:00:00]} c6 {[%emt 0:00:00]} 3. Nf3 {[%emt 0:00:00]} Nf6 {[%emt 0:00:00]} 4. Nc3 {[%emt 0:00:00]} e6 {[%emt 0:00:00]} 5. e3 {[%emt 0:00:31]} Nbd7 {[%emt 0:00:00]} 6. Bd3 {[%emt 0:00:35]} dxc4 {[%emt 0:00:02]} 7. Bxc4 {[%emt 0:00:04]} b5 {[%emt 0:00:02]} 8. Bd3 {[%emt 0:00:06]} a6 {[%emt 0:00:05]} 9. O-O {[%emt 0:00:52]} Bd6 {[%emt 0:01:21]} 10. a3 {[%emt 0:04:08]} c5 {[%emt 0:00:53]} 11. Re1 {[%emt 0:08:28]} Bb7 {[%emt 0:03:46]} 12. e4 {[%emt 0:05:32]} cxd4 {[%emt 0:00:29]} 13. Nxd4 {[%emt 0:00:14]} Ne5 {[%emt 0:13:34]} 14. Be2 {[%emt 0:17:46]} O-O {[%emt 0:02:38]} 15. Bg5 {[%emt 0:06:10]} h6 {[%emt 0:04:13]} 16. Bh4 {[%emt 0:06:28]} Ng6 {[%emt 0:05:36]} 17. Bg3 {[%emt 0:04:25]} Bxg3 {[%emt 0:01:33]} 18. hxg3 {[%emt 0:00:22]} Qb6 {[%emt 0:00:53]} 19. Nb3 {[%emt 0:08:56]} Nxe4 {[%emt 0:03:12]} 20. Nxe4 {[%emt 0:01:23]} Bxe4 {[%emt 0:00:06]} 21. Qd2 {[%emt 0:04:59]} Rfd8 {[%emt 0:05:44]} 22. Qb4 {[%emt 0:01:14]} Bd3 {[%emt 0:11:32]} 23. Bxd3 {[%emt 0:11:55]} Rxd3 {[%emt 0:00:02]} 24. Nc5 {[%emt 0:01:04]} Rd5 {[%emt 0:00:33]} 25. Na4 {[%emt 0:02:04]} Qa7 {[%emt 0:04:24]} 26. Nc3 {[%emt 0:00:31]} Rd4 {[%emt 0:00:33]} 27. Qb3 {[%emt 0:04:07]} Rad8 {[%emt 0:05:22]} 28. a4 {[%emt 0:03:05]} bxa4 {[%emt 0:03:38]} 29. Rxa4 {[%emt 0:00:55]} Rxa4 {[%emt 0:08:47]} 30. Nxa4 {[%emt 0:00:37]} Rd2 {[%emt 0:01:13]} 31. Rf1 {[%emt 0:01:50]} Qd4 {[%emt 0:01:30]} 32. Nc3 {[%emt 0:00:59]} Ne5 {[%emt 0:01:04]} 33. Qb7 {[%emt 0:03:38]} Ng4 {[%emt 0:03:09]} 34. Qa8+ {[%emt 0:01:04]} Kh7 {[%emt 0:00:27]} 35. Qf3 {[%emt 0:02:48]} Rxb2 {[%emt 0:01:55]} 36. Ne2 {[%emt 0:00:19]} Qc4 {[%emt 0:00:47]} 37. Re1 {[%emt 0:00:48]} a5 {[%emt 0:04:32]} 38. Kh1 {[%emt 0:00:29]} a4 {[%emt 0:00:21]} 39. Kg1 {[%emt 0:00:21]} Rc2 {[%emt 0:02:38]} 40. Nf4 {[%emt 0:00:37]} Rc1 {[%emt 0:01:44]} 41. Rd1 {[%emt 0:00:30]} Qc2 {[%emt 0:00:29]} 42. Rf1 {[%emt 0:00:30]} Rxf1+ {[%emt 0:00:08]} 0-1

[Event "15th Governor Cup 2019"]
[Site "Khanty-Mansiysk"]
[Date "2019.11.24"]
[Round "8.22"]
[White "Dorofeeva, Nyurguiaana"]
[Black "Ryabov, Georgi"]
[Result "0-1"]
[ECO "D02"]
[WhiteElo "1848"]
[BlackElo "1887"]
[Annotator "NA"]
[PlyCount "128"]
[EventDate "2019.11.19"]
[EventType "swiss"]
[EventCountry "RUS"]
[SourceTitle "playchess.com"]
[Source "ChessBase"]
[SourceQuality "1"]
[TimeControl "5400+30"]

1. Nf3 {[%emt 0:00:00]} d5 {[%emt 0:00:00]} 2. d4 {[%emt 0:00:00]} Nf6 {[%emt 0:00:00]} 3. Bf4 {[%emt 0:00:00]} g6 {[%emt 0:00:00]} 4. e3 {[%emt 0:00:08]} Bg7 {[%emt 0:00:03]} 5. Be2 {[%emt 0:00:35]} O-O {[%emt 0:00:12]} 6. h3 {[%emt 0:00:18]} Ne4 {[%emt 0:00:53]} 7. Nbd2 {[%emt 0:02:10]} f5 {[%emt 0:00:53]} 8. c4 {[%emt 0:03:31]} e6 {[%emt 0:00:42]} 9. O-O {[%emt 0:01:46]} Nd7 {[%emt 0:00:35]} 10. Rc1 {[%emt 0:01:47]} c6 {[%emt 0:00:56]} 11. b4 {[%emt 0:01:27]} h6 {[%emt 0:01:50]} 12. cxd5 {[%emt 0:11:59]} exd5 {[%emt 0:03:08]} 13. b5 {[%emt 0:02:29]} c5 {[%emt 0:02:29]} 14. dxc5 {[%emt 0:09:00]} Ndxc5 {[%emt 0:01:53]} 15. Nxe4 {[%emt 0:01:19]} Nxe4 {[%emt 0:00:16]} 16. Be5 {[%emt 0:00:46]} Be6 {[%emt 0:07:16]} 17. Qd4 {[%emt 0:24:09]} Rf7 {[%emt 0:04:58]} 18. Rc2 {[%emt 0:06:00]} b6 {[%emt 0:05:59]} 19. Rc6 {[%emt 0:14:41]} Nc5 {[%emt 0:00:19]} 20. Rc1 {[%emt 0:00:25]} Qe7 {[%emt 0:00:53]} 21. Bxg7 {[%emt 0:04:07]} Rxg7 {[%emt 0:01:24]} 22. Qe5 {[%emt 0:00:12]} Re8 {[%emt 0:15:31]} 23. Nd4 {[%emt 0:00:13]} Bf7 {[%emt 0:00:13]} 24. Qxe7 {[%emt 0:01:08]} Rxe7 {[%emt 0:00:05]} 25. Rc8+ {[%emt 0:02:03]} Kh7 {[%emt 0:00:59]} 26. Nc6 {[%emt 0:01:31]} Rb7 {[%emt 0:04:18]} 27. Bf3 {[%emt 0:01:21]} Rg8 {[%emt 0:01:09]} 28. Rd8 {[%emt 0:00:25]} Rc7 {[%emt 0:05:59]} 29. Rxg8 {[%emt 0:08:50]} Bxg8 {[%emt 0:00:36]} 30. Rd1 {[%emt 0:01:01]} Ne4 {[%emt 0:06:03]} 31. Nb4 {[%emt 0:00:05]} Nc3 {[%emt 0:01:50]} 32. Rd3 {[%emt 0:00:26]} Nxb5 {[%emt 0:00:47]} 33. Bxd5 {[%emt 0:00:29]} Bf7 {[%emt 0:00:56]} 34. Bc6 {[%emt 0:01:03]} Bc4 {[%emt 0:01:55]} 35. Rd7+ {[%emt 0:01:03]} Rxd7 {[%emt 0:00:08]} 36. Bxd7 {[%emt 0:00:02]} Nc3 {[%emt 0:01:59]} 37. a3 {[%emt 0:00:44]} Kg7 {[%emt 0:00:19]} 38. Nc6 {[%emt 0:00:19]} Bb5 {[%emt 0:00:44]} 39. Ne5 {[%emt 0:00:07]} Bxd7 {[%emt 0:00:09]} 40. Nxd7 {[%emt 0:00:04]} Nb5 {[%emt 0:00:10]} 41. a4 {[%emt 0:00:11]} Nc3 {[%emt 0:00:08]} 42. a5 {[%emt 0:00:09]} bxa5 {[%emt 0:00:07]} 43. Kf1 {[%emt 0:00:43]} a4 {[%emt 0:09:50]} 44. Nc5 {[%emt 0:00:05]} a3 {[%emt 0:00:06]} 45. Ke1 {[%emt 0:00:51]} a2 {[%emt 0:00:07]} 46. Nb3 {[%emt 0:00:04]} a5 {[%emt 0:00:06]} 47. Kd2 {[%emt 0:00:54]} Ne4+ {[%emt 0:00:12]} 48. Kc2 {[%emt 0:00:10]} a4 {[%emt 0:00:18]} 49. Na1 {[%emt 0:00:06]} Nxf2 {[%emt 0:00:04]} 50. Kb2 {[%emt 0:00:47]} Nd1+ {[%emt 0:00:14]} 51. Kxa2 {[%emt 0:00:04]} Nxe3 {[%emt 0:00:03]} 52. g3 {[%emt 0:00:22]} Nf1 {[%emt 0:00:14]} 53. g4 {[%emt 0:00:06]} fxg4 {[%emt 0:00:04]} 54. hxg4 {[%emt 0:00:03]} Kf6 {[%emt 0:00:05]} 55. Ka3 {[%emt 0:02:17]} Ne3 {[%emt 0:00:14]} 56. Kxa4 {[%emt 0:00:14]} Nxg4 {[%emt 0:00:09]} 57. Nc2 {[%emt 0:01:01]} h5 {[%emt 0:00:07]} 58. Nd4 {[%emt 0:00:47]} h4 {[%emt 0:00:21]} 59. Ne2 {[%emt 0:00:04]} h3 {[%emt 0:00:04]} 60. Ng3 {[%emt 0:00:04]} h2 {[%emt 0:00:04]} 61. Nh1 {[%emt 0:00:16]} Kg5 {[%emt 0:00:06]} 62. Kb3 {[%emt 0:00:14]} Kf4 {[%emt 0:00:15]} 63. Kc3 {[%emt 0:00:06]} Kf3 {[%emt 0:00:04]} 64. Kd2 {[%emt 0:00:13]} Nf2 {[%emt 0:00:07]} 0-1

[Event "15th Governor Cup 2019"]
[Site "Khanty-Mansiysk"]
[Date "2019.11.25"]
[Round "9.8"]
[White "Iljiushenok, Ilia"]
[Black "Lysenko, Margarita"]
[Result "1/2-1/2"]
[ECO "B51"]
[WhiteElo "2532"]
[BlackElo "2243"]
[Annotator "ChessBase"]
[PlyCount "80"]
[EventDate "2019.11.19"]
[EventType "swiss"]
[EventCountry "RUS"]
[SourceTitle "playchess.com"]
[Source "ChessBase"]
[SourceQuality "1"]
[TimeControl "5400+30"]

1. e4 {[%emt 0:00:00]} c5 {[%emt 0:00:00]} 2. Nf3 {[%emt 0:00:00]} d6 {[%emt 0:00:00]} 3. Bb5+ {[%emt 0:00:00]} Nd7 {[%emt 0:00:00]} 4. Ba4 {[%emt 0:00:00]} a6 {[%emt 0:00:56]} 5. c4 {[%emt 0:00:00]} Ngf6 {[%emt 0:00:56]} 6. Nc3 {[%emt 0:00:03]} g6 {[%emt 0:03:24]} 7. O-O {[%emt 0:00:17]} Bg7 {[%emt 0:00:09]} 8. d3 {[%emt 0:00:05]} O-O {[%emt 0:00:27]} 9. h3 {[%emt 0:00:03]} b6 {[%emt 0:15:43]} 10. Be3 {[%emt 0:00:56]} Bb7 {[%emt 0:00:10]} 11. Rb1 {[%emt 0:01:31]} e6 {[%emt 0:03:55]} 12. b4 {[%emt 0:04:11]} Qc7 {[%emt 0:02:55]} 13. Qd2 {[%emt 0:04:48]} Rfd8 {[%emt 0:06:19]} 14. Rfc1 {[%emt 0:02:13]} Nf8 {[%emt 0:14:54]} 15. Bg5 {[%emt 0:03:03]} e5 {[%emt 0:11:04]} 16. Nd5 {[%emt 0:10:17]} Bxd5 {[%emt 0:03:03]} 17. cxd5 {[%emt 0:00:05]} b5 {[%emt 0:04:11]} 18. Bd1 {[%emt 0:03:07]} N8d7 {[%emt 0:00:47]} 19. a4 {[%emt 0:01:13]} Rdb8 {[%emt 0:01:50]} 20. Be3 {[%emt 0:03:14]} Bf8 {[%emt 0:05:19]} 21. Qa2 {[%emt 0:03:59]} Qd8 {[%emt 0:04:02]} 22. Nd2 {[%emt 0:03:43]} cxb4 {[%emt 0:01:59]} 23. Rxb4 {[%emt 0:01:22]} Nc5 {[%emt 0:00:45]} 24. Qa3 {[%emt 0:03:47]} Nfd7 {[%emt 0:02:51]} 25. Rcb1 {[%emt 0:01:52]} Be7 {[%emt 0:04:03]} 26. axb5 {[%emt 0:07:24]} axb5 {[%emt 0:00:12]} 27. Qc3 {[%emt 0:00:35]} Rc8 {[%emt 0:02:17]} 28. Bxc5 {[%emt 0:09:52]} Nxc5 {[%emt 0:00:57]} 29. Bg4 {[%emt 0:09:45]} Nxe4 {[%emt 0:03:59]} 30. Qb2 {[%emt 0:00:06]} Nxd2 {[%emt 0:00:32]} 31. Qxd2 {[%emt 0:00:03]} Rc5 {[%emt 0:01:17]} 32. Rxb5 {[%emt 0:00:14]} Rxb5 {[%emt 0:00:14]} 33. Rxb5 {[%emt 0:00:02]} Rb8 {[%emt 0:01:40]} 34. Rxb8 {[%emt 0:00:59]} Qxb8 {[%emt 0:00:06]} 35. Qc2 {[%emt 0:00:25]} h5 {[%emt 0:00:51]} 36. Qc8+ {[%emt 0:00:08]} Qxc8 {[%emt 0:00:08]} 37. Bxc8 {[%emt 0:00:02]} Bd8 {[%emt 0:00:14]} 38. Kf1 {[%emt 0:00:03]} Bb6 {[%emt 0:00:09]} 39. Ke2 {[%emt 0:00:03]} Kg7 {[%emt 0:00:12]} 40. Bd7 {[%emt 0:00:06]} Kf6 {[%emt 0:00:07]} 1/2-1/2

[Event "15th Governor Cup 2019"]
[Site "Khanty-Mansiysk"]
[Date "2019.11.25"]
[Round "9.10"]
[White "Belyakov, Bogdan"]
[Black "Savitskiy, Sergey"]
[Result "1/2-1/2"]
[ECO "B13"]
[WhiteElo "2495"]
[BlackElo "2396"]
[Annotator "ChessBase"]
[PlyCount "50"]
[EventDate "2019.11.19"]
[EventType "swiss"]
[EventCountry "RUS"]
[SourceTitle "playchess.com"]
[Source "ChessBase"]
[SourceQuality "1"]
[TimeControl "5400+30"]

1. e4 {[%emt 0:00:00]} c6 {[%emt 0:00:00]} 2. d4 {[%emt 0:00:00]} d5 {[%emt 0:00:14]} 3. exd5 {[%emt 0:00:00]} cxd5 {[%emt 0:00:03]} 4. c4 {[%emt 0:00:04]} Nf6 {[%emt 0:00:53]} 5. Nc3 {[%emt 0:00:07]} Nc6 {[%emt 0:00:03]} 6. Nf3 {[%emt 0:00:09]} Bg4 {[%emt 0:00:26]} 7. cxd5 {[%emt 0:00:56]} Nxd5 {[%emt 0:00:12]} 8. Qb3 {[%emt 0:00:06]} Bxf3 {[%emt 0:00:27]} 9. gxf3 {[%emt 0:00:21]} e6 {[%emt 0:00:23]} 10. Qxb7 {[%emt 0:00:52]} Nxd4 {[%emt 0:00:23]} 11. Bb5+ {[%emt 0:00:40]} Nxb5 {[%emt 0:00:24]} 12. Qc6+ {[%emt 0:00:07]} Ke7 {[%emt 0:00:05]} 13. Qxb5 {[%emt 0:00:06]} Qd7 {[%emt 0:00:50]} 14. Nxd5+ {[%emt 0:00:18]} Qxd5 {[%emt 0:00:32]} 15. Qxd5 {[%emt 0:00:08]} exd5 {[%emt 0:00:03]} 16. O-O {[%emt 0:02:57]} Ke6 {[%emt 0:08:38]} 17. Re1+ {[%emt 0:02:31]} Kf5 {[%emt 0:01:53]} 18. Rd1 {[%emt 0:06:21]} Rd8 {[%emt 0:02:36]} 19. Be3 {[%emt 0:02:09]} Rd7 {[%emt 0:01:06]} 20. Rac1 {[%emt 0:18:42]} Be7 {[%emt 0:00:32]} 21. Rc4 {[%emt 0:07:18]} Bf6 {[%emt 0:12:25]} 22. Rf4+ {[%emt 0:00:30]} Kg6 {[%emt 0:00:09]} 23. Rg4+ {[%emt 0:01:04]} Kf5 {[%emt 0:00:44]} 24. Rf4+ {[%emt 0:05:02]} Kg6 {[%emt 0:00:22]} 25. Rg4+ {[%emt 0:14:31]} Kf5 {[%emt 0:00:23]} 1/2-1/2

[Event "15th Governor Cup 2019"]
[Site "Khanty-Mansiysk"]
[Date "2019.11.25"]
[Round "9.11"]
[White "Bocharov, Ivan"]
[Black "Najdin, Danil"]
[Result "1-0"]
[ECO "C78"]
[WhiteElo "2571"]
[BlackElo "2357"]
[Annotator "ChessBase"]
[PlyCount "69"]
[EventDate "2019.11.19"]
[EventType "swiss"]
[EventCountry "RUS"]
[SourceTitle "playchess.com"]
[Source "ChessBase"]
[SourceQuality "1"]
[TimeControl "5400+30"]

1. e4 {[%emt 0:00:07]} e5 {[%emt 0:00:05]} 2. Nf3 {[%emt 0:00:11]} Nc6 {[%emt 0:00:05]} 3. Bb5 {[%emt 0:00:03]} a6 {[%emt 0:00:24]} 4. Ba4 {[%emt 0:00:06]} Nf6 {[%emt 0:00:13]} 5. O-O {[%emt 0:00:07]} b5 {[%emt 0:00:17]} 6. Bb3 {[%emt 0:00:05]} Bc5 {[%emt 0:00:03]} 7. Nxe5 {[%emt 0:00:27]} Nxe5 {[%emt 0:00:12]} 8. d4 {[%emt 0:00:02]} Bxd4 {[%emt 0:00:24]} 9. Qxd4 {[%emt 0:00:06]} d6 {[%emt 0:00:19]} 10. c3 {[%emt 0:09:12]} c5 {[%emt 0:03:32]} 11. Qd1 {[%emt 0:00:43]} Bb7 {[%emt 0:03:53]} 12. f3 {[%emt 0:02:00]} O-O {[%emt 0:04:32]} 13. Be3 {[%emt 0:05:01]} Rc8 {[%emt 0:12:27]} 14. Qe2 {[%emt 0:08:48]} d5 {[%emt 0:09:09]} 15. Rd1 {[%emt 0:02:05]} c4 {[%emt 0:00:59]} 16. Bc2 {[%emt 0:00:12]} Qe7 {[%emt 0:00:31]} 17. f4 {[%emt 0:00:59]} Neg4 {[%emt 0:04:56]} 18. e5 {[%emt 0:01:49]} Nxe3 {[%emt 0:00:12]} 19. Qxe3 {[%emt 0:00:46]} Ng4 {[%emt 0:06:57]} 20. Qg3 {[%emt 0:00:15]} Qc5+ {[%emt 0:02:51]} 21. Rd4 {[%emt 0:00:14]} f5 {[%emt 0:05:48]} 22. Nd2 {[%emt 0:03:05]} g6 {[%emt 0:02:56]} 23. h3 {[%emt 0:08:07]} Nh6 {[%emt 0:02:58]} 24. a3 {[%emt 0:04:27]} a5 {[%emt 0:03:57]} 25. Nf3 {[%emt 0:00:30]} b4 {[%emt 0:01:34]} 26. Ng5 {[%emt 0:01:00]} bxc3 {[%emt 0:01:07]} 27. bxc3 {[%emt 0:00:05]} Rc6 {[%emt 0:01:07]} 28. Qh4 {[%emt 0:02:55]} Kg7 {[%emt 0:00:10]} 29. Kh2 {[%emt 0:01:41]} Rb6 {[%emt 0:04:12]} 30. Rb1 {[%emt 0:00:04]} Rb8 {[%emt 0:00:35]} 31. Rxb6 {[%emt 0:03:07]} Qxb6 {[%emt 0:00:17]} 32. Ba4 {[%emt 0:00:01]} Bc8 {[%emt 0:05:05]} 33. Rxd5 {[%emt 0:03:10]} Qe3 {[%emt 0:04:33]} 34. Nf3 {[%emt 0:08:34]} Ng8 {[%emt 0:03:22]} 35. Rd8 {[%emt 0:00:43]} 1-0

[Event "15th Governor Cup 2019"]
[Site "Khanty-Mansiysk"]
[Date "2019.11.25"]
[Round "9.15"]
[White "Zakaryan, David"]
[Black "Obgolts, Erik"]
[Result "1/2-1/2"]
[ECO "E90"]
[WhiteElo "2338"]
[BlackElo "2371"]
[Annotator "NA"]
[PlyCount "110"]
[EventDate "2019.11.19"]
[EventType "swiss"]
[EventCountry "RUS"]
[SourceTitle "playchess.com"]
[Source "ChessBase"]
[SourceQuality "1"]
[TimeControl "5400+30"]

1. e4 {[%emt 0:02:17]} g6 {[%emt 0:00:25]} 2. d4 {[%emt 0:05:35]} Bg7 {[%emt 0:00:13]} 3. c4 {[%emt 0:00:02]} d6 {[%emt 0:00:05]} 4. Nc3 {[%emt 0:00:07]} Nf6 {[%emt 0:00:06]} 5. Nf3 {[%emt 0:00:04]} O-O {[%emt 0:00:09]} 6. h3 {[%emt 0:00:01]} e5 {[%emt 0:01:37]} 7. d5 {[%emt 0:00:10]} Nh5 {[%emt 0:01:46]} 8. g3 {[%emt 0:00:01]} f5 {[%emt 0:00:11]} 9. exf5 {[%emt 0:00:01]} gxf5 {[%emt 0:00:06]} 10. Nh4 {[%emt 0:00:05]} Nf4 {[%emt 0:00:57]} 11. Qc2 {[%emt 0:01:56]} Na6 {[%emt 0:01:15]} 12. a3 {[%emt 0:00:07]} c6 {[%emt 0:03:47]} 13. Nf3 {[%emt 0:00:50]} Ng6 {[%emt 0:02:11]} 14. Bg5 {[%emt 0:00:02]} Qe8 {[%emt 0:04:56]} 15. O-O-O {[%emt 0:00:21]} cxd5 {[%emt 0:15:55]} 16. Rxd5 {[%emt 0:00:48]} e4 {[%emt 0:06:21]} 17. Nd4 {[%emt 0:02:07]} Nc7 {[%emt 0:05:44]} 18. Rxd6 {[%emt 0:00:12]} Bxd4 {[%emt 0:02:13]} 19. Rxd4 {[%emt 0:00:07]} Ne6 {[%emt 0:00:03]} 20. Be3 {[%emt 0:00:12]} Nxd4 {[%emt 0:00:03]} 21. Bxd4 {[%emt 0:00:03]} Be6 {[%emt 0:01:02]} 22. g4 {[%emt 0:02:01]} Rd8 {[%emt 0:13:05]} 23. Bxa7 {[%emt 0:02:02]} Qc6 {[%emt 0:05:08]} 24. Rg1 {[%emt 0:10:54]} Bxc4 {[%emt 0:06:53]} 25. gxf5 {[%emt 0:00:31]} Rxf5 {[%emt 0:00:32]} 26. Bxc4+ {[%emt 0:02:04]} Qxc4 {[%emt 0:00:06]} 27. Qxe4 {[%emt 0:00:22]} Qxe4 {[%emt 0:00:43]} 28. Nxe4 {[%emt 0:00:01]} Rf4 {[%emt 0:04:20]} 29. Nc3 {[%emt 0:01:12]} Kf7 {[%emt 0:01:10]} 30. Be3 {[%emt 0:00:52]} Rc4 {[%emt 0:00:16]} 31. Kc2 {[%emt 0:00:37]} Ne7 {[%emt 0:02:37]} 32. Kb3 {[%emt 0:07:11]} Rh4 {[%emt 0:01:30]} 33. Rg3 {[%emt 0:01:48]} h6 {[%emt 0:00:57]} 34. Rf3+ {[%emt 0:00:49]} Kg6 {[%emt 0:01:42]} 35. Ne2 {[%emt 0:00:48]} Nd5 {[%emt 0:00:41]} 36. Bc1 {[%emt 0:00:20]} Re8 {[%emt 0:00:53]} 37. Ng1 {[%emt 0:00:35]} Rd4 {[%emt 0:01:50]} 38. Rg3+ {[%emt 0:00:18]} Kh7 {[%emt 0:00:13]} 39. Nf3 {[%emt 0:00:20]} Rd1 {[%emt 0:00:10]} 40. Bd2 {[%emt 0:00:56]} Rf1 {[%emt 0:03:06]} 41. Kc4 {[%emt 0:00:48]} Nf6 {[%emt 0:01:38]} 42. Be3 {[%emt 0:02:40]} Nh5 {[%emt 0:01:21]} 43. Rg4 {[%emt 0:01:00]} Rxe3 {[%emt 0:00:26]} 44. fxe3 {[%emt 0:00:07]} Rxf3 {[%emt 0:00:03]} 45. Re4 {[%emt 0:01:00]} Rxh3 {[%emt 0:02:24]} 46. Re7+ {[%emt 0:00:07]} Kg6 {[%emt 0:00:02]} 47. a4 {[%emt 0:00:39]} Nf6 {[%emt 0:01:57]} 48. Rxb7 {[%emt 0:01:58]} Rxe3 {[%emt 0:00:26]} 49. a5 {[%emt 0:00:09]} Re1 {[%emt 0:03:26]} 50. Rb3 {[%emt 0:01:44]} h5 {[%emt 0:06:20]} 51. a6 {[%emt 0:10:11]} Ra1 {[%emt 0:01:04]} 52. Ra3 {[%emt 0:00:05]} Rxa3 {[%emt 0:00:59]} 53. bxa3 {[%emt 0:00:05]} Ne8 {[%emt 0:00:07]} 54. a7 {[%emt 0:00:07]} Nc7 {[%emt 0:00:03]} 55. Kc5 {[%emt 0:00:03]} h4 {[%emt 0:00:23]} 1/2-1/2